fUST/lending_fUST_20250611
["ID","MTS","AMOUNT","RATE_DAILY","PERIOD"]
[365386277,1749641329806,-317.94056478,0.00018,2]
[365386278,1749641329911,1140.18,0.00024658,120]
[365386285,1749641333279,-371.76640356,0.00018,2]
[365386286,1749641336672,-311.21466435,0.00018,2]
[365386287,1749641342055,-342.11648481,0.00018,2]
[365386288,1749641342287,300.0,0.00017999,2]
[365386289,1749641345479,-224.44067473,0.00018,2]
[365386290,1749641350376,-185.9680556,0.00018,2]
[365386291,1749641353029,-255.11607998,0.00018,2]
[365386295,1749641359437,-221.71357071,0.00018,2]
[365386296,1749641365460,-225.07,0.00018,2]
[365386297,1749641367121,-277.46332939,0.00018,2]
[365386298,1749641368710,-213.62075488,0.00018,2]
[365386299,1749641371918,-201.85554784,0.00018,2]
[365386301,1749641373499,-176.95264947,0.00018,2]
[365386302,1749641375709,-181.60870613,0.00018,2]
[365386303,1749641381207,-157.90957491,0.00018,2]
[365386304,1749641382844,-151.68429597,0.00018,2]
[365386305,1749641391113,-206.01501652,0.00018,2]
[365386306,1749641393216,833897.27083446,0.00024987,60]
[365386307,1749641394096,4056.58265509,0.00018,2]
[365386308,1749641394119,943.41734491,0.00018,2]
[365386309,1749641397455,-275.35372661,0.00018,2]
[365386310,1749641399118,-195.85382659,0.00018,2]
[365386311,1749641401281,-226.84863573,0.00018,2]
[365386312,1749641402292,300.0,0.00017999,2]
[365386313,1749641402566,194.0,0.00017999,2]
[365386314,1749641402817,-224.66716219,0.00018,2]
[365386315,1749641404567,-217.74404699,0.00018,2]
[365386316,1749641407736,-249.40742257,0.00018,2]
[365386317,1749641410258,675.07679843,0.00018,2]
[365386318,1749641410383,1200.0,0.00017999,2]
[365386319,1749641413633,-211.22775025,0.00018,2]
[365386320,1749641418016,-241.47574459,0.00018,2]
[365386321,1749641422778,-271.18130867,0.00018,2]
[365386322,1749641425012,-230.91,0.00018,2]
[365386323,1749641427307,-225.44817889,0.00018,2]
[365386324,1749641430035,-419.91669236,0.00018,2]
[365386342,1749641432819,-70847.58478987,0.00018,2]
[365386343,1749641432829,-250.0,0.00018655,2]
[365386344,1749641432838,-179.532932,0.00019535,2]
[365386345,1749641432847,-420.0,0.00019639,2]
[365386346,1749641432856,-460.026386,0.00019721,2]
[365386347,1749641432865,-172.125856,0.00019774,2]
[365386348,1749641432875,-199.42505074,0.0002,2]
[365386349,1749641432884,-6567.94208121,0.0002,2]
[365386350,1749641432893,-1183.73304826,0.0002,2]
[365386351,1749641432902,-360.45714258,0.0002,2]
[365386352,1749641432911,-554.42837408,0.0002,2]
[365386353,1749641432920,-412.75043494,0.0002,2]
[365386354,1749641432930,-300.0,0.00020298,2]
[365386355,1749641432938,-2477.51788204,0.000203,3]
[365386356,1749641432948,-2477.5178819,0.000203,3]
[365386357,1749641432957,-2477.5178819,0.000203,3]
[365386358,1749641432966,-330.9,0.00020323,2]
[365386359,1749641432976,-365.0707398,0.000204,2]
[365386360,1749641432985,-364.7044093,0.000204,2]
[365386361,1749641432994,-2477.5178819,0.00020417,3]
[365386362,1749641433004,-160.0,0.00020421,2]
[365386363,1749641433013,-176.81809,0.00020478,2]
[365386364,1749641433024,-160.7944978,0.00020478,2]
[365386365,1749641433034,-1146.9306008,0.00020478,2]
[365386366,1749641433043,-844.64040732,0.0002059,3]
[365386367,1749641433053,-213.16534259,0.0002059,3]
[365386368,1749641433063,-160.0,0.0002059,3]
[365386369,1749641433072,-2477.5178819,0.0002059,3]
[365386370,1749641433083,-11860.25191276,0.0002059,3]
[365386371,1749641433092,-949.99,0.000206,2]
[365386372,1749641433102,-441.79506932,0.00020733,2]
[365386373,1749641433111,-1270.66,0.00020761,2]
[365386374,1749641433121,-2477.5178819,0.00020762,3]
[365386375,1749641433130,-153.0,0.00020877,2]
[365386376,1749641433139,-153.0,0.00020877,2]
[365386377,1749641433149,-153.0,0.00020877,2]
[365386378,1749641433158,-153.0,0.00020877,2]
[365386379,1749641433168,-2477.5178819,0.00020934,4]
[365386380,1749641433177,-302.60882944,0.00020935,2]
[365386381,1749641433186,-441.79506932,0.00020951,2]
[365386382,1749641433195,-5888.0,0.00020999,2]
[365386383,1749641433205,-728.23,0.00021085,3]
[365386384,1749641433215,-364.12,0.00021085,3]
[365386385,1749641433225,-376.06,0.00021085,3]
[365386386,1749641433235,-188.03,0.00021085,3]
[365386387,1749641433244,-564.09,0.00021085,3]
[365386388,1749641433254,-460.0,0.00021095,4]
[365386389,1749641433264,-2005.06,0.00021095,4]
[365386390,1749641433274,-529.02406173,0.00021095,4]
[365386391,1749641433283,-460.0,0.00021095,4]
[365386392,1749641433292,-460.0,0.00021095,4]
[365386393,1749641433302,-560.0,0.00021095,4]
[365386394,1749641433310,-460.0,0.00021095,4]
[365386395,1749641433320,-474.01,0.00021095,4]
[365386396,1749641433329,-460.0,0.00021095,4]
[365386397,1749641433339,-460.0,0.00021095,4]
[365386398,1749641433349,-460.0,0.00021095,4]
[365386399,1749641433358,-460.0,0.00021095,4]
[365386400,1749641433367,-460.0,0.00021095,2]
[365386401,1749641433377,-555.09,0.00021095,4]
[365386402,1749641433386,-460.0,0.00021095,4]
[365386403,1749641433395,-460.0,0.00021095,4]
[365386404,1749641433405,-400.0,0.00021095,4]
[365386405,1749641433414,-460.0,0.00021095,4]
[365386406,1749641433423,-2344.53,0.00021095,4]
[365386407,1749641433432,-460.0,0.00021095,4]
[365386408,1749641433442,-568.64,0.00021095,4]
[365386409,1749641433452,-460.0,0.00021095,4]
[365386410,1749641433461,-951.23,0.00021095,4]
[365386411,1749641433470,-726.73,0.00021095,4]
[365386412,1749641433483,-460.0,0.00021095,4]
[365386413,1749641433493,-440.0,0.00021095,4]
[365386414,1749641433503,-400.0,0.00021095,4]
[365386415,1749641433513,-1638.18,0.00021095,4]
[365386416,1749641433524,-460.0,0.00021095,4]
[365386417,1749641433534,-1061.73,0.00021095,4]
[365386418,1749641433544,-460.0,0.00021095,4]
[365386419,1749641433554,-460.0,0.00021095,4]
[365386420,1749641433564,-1699.76,0.00021095,4]
[365386421,1749641433573,-460.0,0.00021095,4]
[365386422,1749641433583,-460.0,0.00021095,4]
[365386423,1749641433592,-2099.05,0.00021095,4]
[365386424,1749641433603,-460.0,0.00021095,4]
[365386425,1749641433613,-460.0,0.00021095,4]
[365386426,1749641433622,-1383.12,0.00021095,4]
[365386427,1749641433632,-460.0,0.00021095,4]
[365386428,1749641433642,-1104.17,0.00021095,4]
[365386429,1749641433652,-460.0,0.00021095,4]
[365386430,1749641433661,-460.0,0.00021095,4]
[365386431,1749641433671,-460.0,0.00021095,4]
[365386432,1749641433680,-460.0,0.00021095,4]
[365386433,1749641433690,-460.0,0.00021095,4]
[365386434,1749641433699,-460.0,0.00021095,4]
[365386435,1749641433708,-460.0,0.00021095,4]
[365386436,1749641433718,-1558.67,0.00021095,4]
[365386437,1749641433728,-460.0,0.00021095,4]
[365386438,1749641433737,-2638.03,0.00021095,4]
[365386439,1749641433748,-937.48,0.00021095,4]
[365386440,1749641433758,-410.0,0.00021095,4]
[365386441,1749641433771,-1687.76,0.00021095,4]
[365386442,1749641433782,-563.25,0.00021095,4]
[365386443,1749641433792,-350.0,0.00021095,4]
[365386444,1749641433801,-981.86,0.00021095,4]
[365386445,1749641433811,-460.0,0.00021095,4]
[365386446,1749641433822,-460.0,0.00021095,4]
[365386447,1749641433832,-460.0,0.00021095,4]
[365386448,1749641433841,-672.78,0.00021095,4]
[365386449,1749641433851,-420.0,0.00021095,4]
[365386450,1749641433861,-460.0,0.00021095,4]
[365386451,1749641433870,-460.0,0.00021095,4]
[365386452,1749641433879,-460.0,0.00021095,4]
[365386453,1749641433889,-1155.72,0.00021095,4]
[365386454,1749641433899,-2477.5178819,0.00021107,4]
[365386455,1749641433908,-365.0707398,0.00021151,2]
[365386456,1749641433918,-365.0707398,0.00021151,2]
[365386457,1749641433928,-365.0707398,0.00021151,2]
[365386458,1749641433937,-365.0707398,0.00021151,2]
[365386459,1749641433946,-1270.66,0.0002124,2]
[365386460,1749641433956,-5.28213283,0.00021241,4]
[365386461,1749641433982,-454.71786717,0.00021241,4]
[365386462,1749641433992,-460.0,0.00021241,4]
[365386463,1749641434001,-319.95367181,0.00021241,4]
[365386464,1749641434012,-193.37338894,0.00021241,4]
[365386491,1749641438664,-376.35092718,0.00021095,4]
[365386493,1749641438674,-233.67368109,0.00021095,4]
[365386504,1749641438771,-226.32631891,0.00021095,4]
[365386506,1749641438781,-460.0,0.00021095,4]
[365386507,1749641438790,-500.0,0.00021095,4]
[365386508,1749641438800,-231.2659497,0.00021241,4]
[365386510,1749641438809,-420.0,0.00021241,4]
[365386511,1749641438818,-410.0,0.00021241,4]
[365386512,1749641438828,-460.0,0.00021241,4]
[365386513,1749641438838,-487.51432381,0.00021241,4]
[365386514,1749641438847,-310.0,0.00021241,4]
[365386515,1749641438856,-1270.66,0.00021241,2]
[365386516,1749641438866,-460.0,0.00021243,4]
[365386517,1749641438876,-500.0,0.00021276,2]
[365386518,1749641438885,-504.80697987,0.00021276,2]
[365386519,1749641438896,-500.0,0.00021276,2]
[365386520,1749641438908,-2477.5178819,0.00021279,5]
[365386521,1749641438917,-661.8,0.00021291,2]
[365386522,1749641438927,-2005.06,0.00021369,4]
[365386523,1749641438937,-460.0,0.00021369,4]
[365386524,1749641438946,-474.01,0.00021369,4]
[365386525,1749641438955,-460.0,0.00021369,4]
[365386526,1749641438965,-460.0,0.00021369,4]
[365386528,1749641438974,-455.38,0.00021369,4]
[365386529,1749641438983,-460.0,0.00021369,4]
[365386530,1749641438992,-460.0,0.00021369,2]
[365386531,1749641439002,-460.0,0.00021369,4]
[365386533,1749641439012,-416.21,0.00021369,4]
[365386535,1749641439021,-460.0,0.00021369,4]
[365386536,1749641439030,-2344.53,0.00021369,4]
[365386538,1749641439039,-460.0,0.00021369,4]
[365386540,1749641439048,-568.64,0.00021369,4]
[365386542,1749641439057,-460.0,0.00021369,4]
[365386544,1749641439070,-951.23,0.00021369,4]
[365386546,1749641439089,-726.73,0.00021369,4]
[365386548,1749641439102,-460.0,0.00021369,4]
[365386550,1749641439119,-1638.18,0.00021369,4]
[365386552,1749641439129,-1061.73,0.00021369,4]
[365386555,1749641439149,-1699.76,0.00021369,4]
[365386557,1749641439159,-460.0,0.00021369,4]
[365386559,1749641439168,-2099.05,0.00021369,4]
[365386562,1749641439178,-440.0,0.00021369,4]
[365386564,1749641439189,-1383.12,0.00021369,4]
[365386566,1749641439198,-460.0,0.00021369,4]
[365386568,1749641439214,-1104.17,0.00021369,4]
[365386570,1749641439232,-460.0,0.00021369,4]
[365386572,1749641439243,-460.0,0.00021369,4]
[365386574,1749641439253,-429.40865632,0.00021369,4]
[365386576,1749641439263,-460.0,0.00021369,4]
[365386578,1749641439274,-268.53973414,0.00021369,4]
[365386580,1749641439284,-1558.67,0.00021369,4]
[365386582,1749641439294,-460.0,0.00021369,4]
[365386584,1749641439304,-2638.03,0.00021369,4]
[365386586,1749641439314,-937.48,0.00021369,4]
[365386588,1749641439324,-1687.76,0.00021369,4]
[365386590,1749641439333,-563.25,0.00021369,4]
[365386592,1749641439343,-981.86,0.00021369,4]
[365386594,1749641439352,-460.0,0.00021369,4]
[365386596,1749641439362,-672.78,0.00021369,4]
[365386598,1749641439371,-460.0,0.00021369,4]
[365386599,1749641439380,-1155.72,0.00021369,4]
[365386601,1749641439389,-460.0,0.00021369,4]
[365386604,1749641439399,-226.23384681,0.00021389,2]
[365386606,1749641439409,-151.0,0.000214,3]
[365386608,1749641439419,-501.86867376,0.0002142,2]
[365386610,1749641439429,-512.79628993,0.0002142,2]
[365386612,1749641439439,-500.0,0.00021423,2]
[365386614,1749641439450,-522.08948406,0.00021423,2]
[365386616,1749641439459,-500.0,0.00021423,2]
[365386618,1749641439470,-500.0,0.00021423,2]
[365386620,1749641439481,-646.80421751,0.00021423,2]
[365386622,1749641439491,-500.0,0.00021423,2]
[365386624,1749641439499,-500.0,0.00021423,2]
[365386626,1749641439508,-629.77582908,0.00021423,2]
[365386628,1749641439517,-500.0,0.00021423,2]
[365386630,1749641439528,-500.0,0.00021423,2]
[365386632,1749641439539,-500.0,0.00021423,2]
[365386634,1749641439549,-500.0,0.00021423,2]
[365386636,1749641439559,-500.0,0.00021423,2]
[365386638,1749641439570,-500.0,0.00021423,2]
[365386640,1749641439580,-500.0,0.00021423,2]
[365386642,1749641439589,-586.01265058,0.00021423,2]
[365386644,1749641439599,-500.0,0.00021423,2]
[365386646,1749641439608,-500.0,0.00021423,2]
[365386648,1749641439618,-500.0,0.00021423,2]
[365386650,1749641439627,-500.0,0.00021423,2]
[365386652,1749641439637,-500.0,0.00021423,2]
[365386654,1749641439647,-500.0,0.00021423,2]
[365386656,1749641439656,-500.0,0.00021423,2]
[365386658,1749641439665,-500.0,0.00021423,2]
[365386660,1749641439675,-500.0,0.00021423,2]
[365386662,1749641439684,-500.0,0.00021423,2]
[365386664,1749641439694,-432.9499886,0.00021423,2]
[365386666,1749641439703,-500.0,0.00021423,2]
[365386668,1749641439713,-500.0,0.00021423,2]
[365386670,1749641439722,-500.0,0.00021423,2]
[365386672,1749641439732,-595.23135726,0.00021423,2]
[365386674,1749641439742,-500.0,0.00021423,2]
[365386676,1749641439752,-500.0,0.00021423,2]
[365386678,1749641439762,-500.0,0.00021423,2]
[365386680,1749641439776,-500.0,0.00021423,2]
[365386682,1749641439787,-500.0,0.00021423,2]
[365386684,1749641439797,-638.23766379,0.00021423,2]
[365386686,1749641439807,-500.0,0.00021423,2]
[365386688,1749641439817,-500.0,0.00021423,2]
[365386690,1749641439827,-500.0,0.00021423,2]
[365386692,1749641439838,-500.0,0.00021423,2]
[365386695,1749641439848,-500.0,0.00021423,2]
[365386697,1749641439857,-500.0,0.00021423,2]
[365386699,1749641439868,-209.38379926,0.00021423,2]
[365386701,1749641439878,-500.0,0.00021423,2]
[365386703,1749641439888,-500.0,0.00021423,2]
[365386705,1749641439898,-500.0,0.00021423,2]
[365386707,1749641439908,-500.0,0.00021423,2]
[365386709,1749641439918,-500.0,0.00021423,2]
[365386711,1749641439928,-500.0,0.00021423,2]
[365386713,1749641439937,-500.0,0.00021423,2]
[365386715,1749641439947,-500.0,0.00021423,2]
[365386717,1749641439956,-613.37870996,0.00021423,2]
[365386719,1749641439965,-500.0,0.00021423,2]
[365386721,1749641439974,-500.0,0.00021423,2]
[365386723,1749641439984,-500.0,0.00021423,2]
[365386725,1749641439994,-500.0,0.00021423,2]
[365386727,1749641440004,-500.0,0.00021423,2]
[365386729,1749641440014,-500.0,0.00021423,2]
[365386731,1749641440023,-450.0,0.00021423,2]
[365386733,1749641440033,-500.0,0.00021423,2]
[365386735,1749641440043,-500.0,0.00021423,2]
[365386737,1749641440052,-500.0,0.00021423,2]
[365386739,1749641440062,-500.0,0.00021423,2]
[365386741,1749641440071,-500.0,0.00021423,2]
[365386743,1749641440081,-500.0,0.00021423,2]
[365386745,1749641440091,-500.0,0.00021423,2]
[365386747,1749641440100,-500.0,0.00021423,2]
[365386749,1749641440110,-500.0,0.00021423,2]
[365386751,1749641440119,-500.0,0.00021423,2]
[365386753,1749641440129,-500.0,0.00021423,2]
[365386755,1749641440138,-500.0,0.00021423,2]
[365386758,1749641440148,-500.0,0.00021423,2]
[365386760,1749641440157,-500.0,0.00021423,2]
[365386762,1749641440167,-500.0,0.00021423,2]
[365386764,1749641440177,-500.0,0.00021423,2]
[365386766,1749641440186,-500.0,0.00021423,2]
[365386768,1749641440195,-500.0,0.00021423,2]
[365386771,1749641440205,-500.0,0.00021423,2]
[365386774,1749641440214,-500.0,0.00021423,2]
[365386777,1749641440225,-500.0,0.00021423,2]
[365386780,1749641440235,-500.0,0.00021423,2]
[365386796,1749641440373,-500.0,0.00021423,2]
[365386798,1749641440385,-500.0,0.00021423,2]
[365386800,1749641440395,-500.0,0.00021423,2]
[365386803,1749641440404,-500.0,0.00021423,2]
[365386805,1749641440413,-500.0,0.00021423,2]
[365386807,1749641440423,-500.0,0.00021423,2]
[365386809,1749641440437,-500.0,0.00021423,2]
[365386811,1749641440447,-500.0,0.00021423,2]
[365386813,1749641440457,-500.0,0.00021423,2]
[365386815,1749641440466,-500.0,0.00021423,2]
[365386817,1749641440476,-500.0,0.00021423,2]
[365386819,1749641440489,-500.0,0.00021423,2]
[365386822,1749641440499,-500.0,0.00021423,2]
[365386824,1749641440508,-500.0,0.00021423,2]
[365386826,1749641440518,-500.0,0.00021423,2]
[365386828,1749641440528,-500.0,0.00021423,2]
[365386830,1749641440538,-500.0,0.00021423,2]
[365386832,1749641440547,-500.0,0.00021423,2]
[365386834,1749641440562,-562.6378102,0.00021423,2]
[365386836,1749641440572,-500.0,0.00021423,2]
[365386838,1749641440581,-500.0,0.00021423,2]
[365386840,1749641440590,-500.0,0.00021423,2]
[365386842,1749641440600,-500.0,0.00021423,2]
[365386844,1749641440609,-500.0,0.00021423,2]
[365386846,1749641440618,-500.0,0.00021423,2]
[365386848,1749641440627,-9516.88860598,0.00021424,2]
[365386850,1749641440637,-587.0,0.00021428,2]
[365386852,1749641440647,-151.0,0.00021437,2]
[365386854,1749641440656,-151.70252757,0.00021437,2]
[365386856,1749641440666,-500.0,0.00021437,2]
[365386858,1749641440675,-500.0,0.00021437,2]
[365386860,1749641440684,-500.0,0.00021437,2]
[365386862,1749641440693,-151.0,0.00021437,2]
[365386864,1749641440702,-500.0,0.00021437,2]
[365386866,1749641440712,-151.0,0.00021437,2]
[365386869,1749641440721,-1250.0,0.00021437,2]
[365386871,1749641440730,-500.0,0.00021437,2]
[365386873,1749641440740,-536.64384642,0.00021437,2]
[365386875,1749641440749,-1688.0,0.00021437,2]
[365386877,1749641440758,-1250.0,0.00021437,2]
[365386879,1749641440768,-500.0,0.00021437,2]
[365386881,1749641440777,-151.0,0.00021437,2]
[365386883,1749641440787,-1250.0,0.00021437,2]
[365386885,1749641440796,-500.0,0.00021437,2]
[365386887,1749641440805,-151.0,0.00021437,2]
[365386889,1749641440814,-5000.0,0.00021437,2]
[365386891,1749641440825,-1250.0,0.00021437,2]
[365386893,1749641440834,-500.0,0.00021437,2]
[365386895,1749641440843,-151.0,0.00021437,2]
[365386897,1749641440852,-1250.0,0.00021437,2]
[365386899,1749641440861,-500.0,0.00021437,2]
[365386901,1749641440871,-151.0,0.00021437,2]
[365386903,1749641440880,-1250.0,0.00021437,2]
[365386905,1749641440889,-500.0,0.00021437,2]
[365386907,1749641440898,-151.0,0.00021437,2]
[365386908,1749641440907,-1250.0,0.00021437,2]
[365386911,1749641440917,-500.0,0.00021437,2]
[365386913,1749641440926,-151.0,0.00021437,2]
[365386914,1749641440936,-1250.0,0.00021437,2]
[365386917,1749641440946,-500.0,0.00021437,2]
[365386919,1749641440955,-151.0,0.00021437,2]
[365386921,1749641440965,-1250.0,0.00021437,2]
[365386923,1749641440974,-500.0,0.00021437,2]
[365386925,1749641440983,-151.0,0.00021437,2]
[365386927,1749641440993,-500.0,0.00021437,2]
[365386929,1749641441002,-151.0,0.00021437,2]
[365386931,1749641441012,-1250.0,0.00021437,2]
[365386933,1749641441021,-500.0,0.00021437,2]
[365386935,1749641441032,-151.0,0.00021437,2]
[365386936,1749641441041,-1250.0,0.00021437,2]
[365386938,1749641441051,-500.0,0.00021437,2]
[365386941,1749641441062,-151.0,0.00021437,2]
[365386943,1749641441071,-1250.0,0.00021437,2]
[365386945,1749641441081,-500.0,0.00021437,2]
[365386947,1749641441090,-170.69580346,0.00021437,2]
[365386949,1749641441099,-1250.0,0.00021437,2]
[365386951,1749641441109,-500.0,0.00021437,2]
[365386953,1749641441118,-1250.0,0.00021437,2]
[365386954,1749641441127,-500.0,0.00021437,2]
[365386956,1749641441136,-1250.0,0.00021437,2]
[365386957,1749641441145,-207.4,0.00021437,2]
[365386958,1749641441154,-2477.5178819,0.00021452,5]
[365386959,1749641441164,-1750.456,0.00021492,2]
[365386961,1749641441174,-151.0,0.000215,3]
[365386962,1749641441183,-4928.33673106,0.000215,2]
[365386964,1749641441193,-1270.66,0.00021514,2]
[365386965,1749641441202,-460.0,0.00021515,4]
[365386967,1749641441211,-460.0,0.00021515,4]
[365386969,1749641441221,-206.50460099,0.00021515,4]
[365386971,1749641441230,-1270.66,0.00021515,2]
[365386973,1749641441239,-460.0,0.00021517,4]
[365386975,1749641441248,-582.01,0.00021518,3]
[365386976,1749641441257,-193.99,0.00021528,3]
[365386978,1749641441267,-1040.0,0.00021538,2]
[365386980,1749641441277,-1815.222872,0.00021547,2]
[365386981,1749641441286,-5888.0,0.00021557,2]
[365386983,1749641441296,-50908.57969434,0.00021598,2]
[365386984,1749641441305,-151.0,0.000216,3]
[365386985,1749641441315,-1882.38611826,0.00021602,2]
[365386986,1749641441324,-2477.5178819,0.00021624,5]
[365386987,1749641441334,-2005.06,0.00021643,4]
[365386988,1749641441343,-460.0,0.00021643,4]
[365386989,1749641441352,-474.01,0.00021643,4]
[365386990,1749641441363,-460.0,0.00021643,4]
[365386991,1749641441373,-460.0,0.00021643,2]
[365386992,1749641441382,-558.83036688,0.00021643,4]
[365386993,1749641441391,-460.0,0.00021643,4]
[365386994,1749641441400,-2344.53,0.00021643,4]
[365386995,1749641441409,-460.0,0.00021643,4]
[365386996,1749641441418,-568.64,0.00021643,4]
[365386997,1749641441429,-587.29,0.00021643,4]
[365386998,1749641441438,-951.23,0.00021643,4]
[365386999,1749641441449,-726.73,0.00021643,4]
[365387000,1749641441458,-460.0,0.00021643,4]
[365387001,1749641441467,-1638.18,0.00021643,4]
[365387002,1749641441479,-1061.73,0.00021643,4]
[365387003,1749641441488,-1699.76,0.00021643,4]
[365387004,1749641441499,-217.06801446,0.00021643,4]
[365387005,1749641441508,-2099.05,0.00021643,4]
[365387006,1749641441517,-1383.12,0.00021643,4]
[365387007,1749641441528,-311.03,0.00021643,4]
[365387008,1749641441537,-1104.17,0.00021643,4]
[365387009,1749641441547,-460.0,0.00021643,4]
[365387010,1749641441556,-460.0,0.00021643,4]
[365387011,1749641441567,-460.0,0.00021643,4]
[365387012,1749641441576,-1558.67,0.00021643,4]
[365387013,1749641441586,-2638.03,0.00021643,4]
[365387014,1749641441595,-937.48,0.00021643,4]
[365387015,1749641441605,-1687.76,0.00021643,4]
[365387016,1749641441614,-563.25,0.00021643,4]
[365387017,1749641441623,-981.86,0.00021643,4]
[365387018,1749641441632,-672.78,0.00021643,4]
[365387019,1749641441641,-1155.72,0.00021643,4]
[365387020,1749641441650,-460.0,0.00021643,4]
[365387021,1749641441660,-1952.03440464,0.00021657,2]
[365387022,1749641441669,-5888.0,0.00021661,2]
[365387023,1749641441678,-1270.66,0.00021698,2]
[365387024,1749641441687,-306.0,0.00021699,2]
[365387025,1749641441695,-151.0,0.000217,3]
[365387026,1749641441704,-151.0,0.000217,3]
[365387027,1749641441714,-949.99,0.000217,2]
[365387028,1749641441723,-958.4096888,0.00021712,2]
[365387029,1749641441732,-516.90585791,0.00021722,2]
[365387030,1749641441742,-460.0,0.00021789,4]
[365387031,1749641441751,-460.0,0.00021789,4]
[365387032,1749641441760,-183.08,0.00021789,2]
[365387033,1749641441769,-1270.66,0.00021789,2]
[365387034,1749641441779,-400.0,0.00021791,4]
[365387035,1749641441788,-2477.5178819,0.00021797,6]
[365387036,1749641441797,-151.0,0.000218,4]
[365387037,1749641441806,-1010.358342,0.00021824,2]
[365387038,1749641441817,-1000.0,0.00021824,2]
[365387039,1749641441826,-1270.66,0.00021886,2]
[365387040,1749641441835,-151.0,0.000219,4]
[365387041,1749641441844,-500.0,0.00021917,2]
[365387042,1749641441853,-2005.06,0.00021917,4]
[365387043,1749641441862,-460.0,0.00021917,4]
[365387044,1749641441871,-474.01,0.00021917,4]
[365387045,1749641441880,-460.0,0.00021917,4]
[365387046,1749641441889,-460.0,0.00021917,2]
[365387047,1749641441898,-460.0,0.00021917,4]
[365387048,1749641441907,-2344.53,0.00021917,4]
[365387049,1749641441916,-460.0,0.00021917,4]
[365387050,1749641441925,-568.64,0.00021917,4]
[365387051,1749641441934,-951.23,0.00021917,4]
[365387052,1749641441943,-726.73,0.00021917,4]
[365387053,1749641441952,-460.0,0.00021917,4]
[365387054,1749641441962,-1638.18,0.00021917,4]
[365387055,1749641441971,-1061.73,0.00021917,4]
[365387056,1749641441980,-1699.76,0.00021917,4]
[365387057,1749641441990,-2099.05,0.00021917,4]
[365387058,1749641441999,-1383.12,0.00021917,4]
[365387059,1749641442008,-1104.17,0.00021917,4]
[365387060,1749641442016,-460.0,0.00021917,4]
[365387061,1749641442026,-460.0,0.00021917,4]
[365387062,1749641442035,-460.0,0.00021917,4]
[365387063,1749641442044,-1558.67,0.00021917,4]
[365387064,1749641442053,-2638.03,0.00021917,4]
[365387065,1749641442062,-937.48,0.00021917,4]
[365387066,1749641442071,-1687.76,0.00021917,4]
[365387067,1749641442080,-563.25,0.00021917,4]
[365387068,1749641442090,-981.86,0.00021917,4]
[365387069,1749641442099,-672.78,0.00021917,4]
[365387070,1749641442108,-1155.72,0.00021917,4]
[365387071,1749641442118,-1270.66,0.00021964,2]
[365387072,1749641442129,-5000.0,0.00021965,2]
[365387073,1749641442138,-2477.5178819,0.00021969,6]
[365387074,1749641442148,-500.0,0.00021973,2]
[365387075,1749641442158,-209.53285315,0.00021973,2]
[365387076,1749641442168,-258.55846823,0.00021973,2]
[365387077,1749641442176,-500.0,0.00021973,2]